[Event "Live Chess"]
[Site "Chess.com"]
[Date "2024.06.02"]
[Round "-"]
[White "f4nomore"]
[Black "Duke_of_Bebington"]
[Result "0-1"]
[WhiteElo "1275"]
[BlackElo "1633"]
[TimeControl "300"]
[EndTime "4:53:06 PDT"]
[Termination "Duke_of_Bebington won by resignation"]

1. c4 {[%clk 0:04:54.9]} 1... c6 {[%clk 0:04:57.9]} 2. Nc3 {[%clk 0:04:53]} 2...
d5 {[%clk 0:04:54.3]} 3. cxd5 {[%clk 0:04:51.6]} 3... cxd5 {[%clk 0:04:53.2]} 4.
d4 {[%clk 0:04:49.7]} 4... e5 {[%clk 0:04:52.3]} 5. dxe5 {[%clk 0:04:46.2]} 5...
d4 {[%clk 0:04:51.2]} 6. Ne4 {[%clk 0:04:40.7]} 6... Qa5+ {[%clk 0:04:45.4]} 7.
Bd2 {[%clk 0:04:37.7]} 7... Qxe5 {[%clk 0:04:44.1]} 8. Ng3 {[%clk 0:04:26.9]}
8... Nf6 {[%clk 0:04:41.9]} 9. Nf3 {[%clk 0:04:24.7]} 9... Qd6 {[%clk
0:04:34.1]} 10. Qa4+ {[%clk 0:04:20.3]} 10... Nc6 {[%clk 0:04:32.3]} 11. O-O-O
{[%clk 0:04:04.1]} 11... Qc5+ {[%clk 0:04:11]} 12. Kb1 {[%clk 0:03:56.5]} 12...
Bd6 {[%clk 0:04:06.1]} 13. Rc1 {[%clk 0:03:48.3]} 13... Qb6 {[%clk 0:04:00]} 14.
Qc4 {[%clk 0:03:30.2]} 14... Be6 {[%clk 0:03:50.8]} 15. Qc2 {[%clk 0:03:22.3]}
15... Qa6 {[%clk 0:03:40.6]} 16. a3 {[%clk 0:03:18.4]} 16... O-O {[%clk
0:03:36.6]} 17. Ne4 {[%clk 0:03:07.6]} 17... Nxe4 {[%clk 0:03:30.7]} 18. Qxe4
{[%clk 0:03:04.5]} 18... Qb6 {[%clk 0:03:17.2]} 19. e3 {[%clk 0:03:00.8]} 19...
g6 {[%clk 0:03:10.7]} 20. exd4 {[%clk 0:02:54.3]} 20... Bf5 {[%clk 0:03:09.4]}
21. Qxf5 {[%clk 0:02:41.9]} 21... gxf5 {[%clk 0:03:07.7]} 22. Bd3 {[%clk
0:02:39.4]} 22... Bxa3 {[%clk 0:03:05.5]} 23. Rc2 {[%clk 0:02:36.3]} 23... Bb4
{[%clk 0:02:58.6]} 24. Bxf5 {[%clk 0:02:31.3]} 24... Bxd2 {[%clk 0:02:56.9]} 25.
Rxd2 {[%clk 0:02:24.5]} 25... Rad8 {[%clk 0:02:51.9]} 26. Ng5 {[%clk 0:02:18.6]}
26... h6 {[%clk 0:02:41.2]} 27. Ne4 {[%clk 0:02:10.9]} 27... Kg7 {[%clk
0:02:32.7]} 28. d5 {[%clk 0:02:02.9]} 28... Ne5 {[%clk 0:02:22.5]} 29. Rhd1
{[%clk 0:01:54.6]} 29... Nc4 {[%clk 0:02:18.2]} 30. Rc2 {[%clk 0:01:50.1]} 30...
Nd6 {[%clk 0:02:15.8]} 31. Nxd6 {[%clk 0:01:45.3]} 31... Qxd6 {[%clk 0:02:14.4]}
32. Be4 {[%clk 0:01:40.2]} 32... Rfe8 {[%clk 0:02:01.6]} 33. f3 {[%clk
0:01:34.7]} 33... Qxh2 {[%clk 0:02:00.1]} 34. g4 {[%clk 0:01:24.9]} 34... Qf4
{[%clk 0:01:54.4]} 0-1

[Event "Live Chess"]
[Site "Chess.com"]
[Date "2024.06.02"]
[Round "-"]
[White "jimwad"]
[Black "elis06"]
[Result "0-1"]
[WhiteElo "1303"]
[BlackElo "2326"]
[TimeControl "300"]
[EndTime "4:53:32 PDT"]
[Termination "elis06 won by resignation"]

1. c4 {[%clk 0:04:59.2]} 1... e6 {[%clk 0:04:58.7]} 2. g3 {[%clk 0:04:58.2]}
2... d5 {[%clk 0:04:57.9]} 3. cxd5 {[%clk 0:04:56.6]} 3... exd5 {[%clk
0:04:57.8]} 4. Bg2 {[%clk 0:04:55.3]} 4... c6 {[%clk 0:04:57.2]} 5. d4 {[%clk
0:04:53.5]} 5... Bd6 {[%clk 0:04:56.5]} 6. Nc3 {[%clk 0:04:52.2]} 6... Nf6
{[%clk 0:04:53.1]} 7. Bg5 {[%clk 0:04:48.8]} 7... O-O {[%clk 0:04:51.7]} 8. e4
{[%clk 0:04:46.1]} 8... dxe4 {[%clk 0:04:50.2]} 9. Nxe4 {[%clk 0:04:45.1]} 9...
Re8 {[%clk 0:04:46.5]} 10. Bxf6 {[%clk 0:04:37.6]} 10... Qxf6 {[%clk 0:04:41.8]}
11. Ne2 {[%clk 0:04:35.4]} 11... Qd8 {[%clk 0:04:39.6]} 12. O-O {[%clk
0:04:33.6]} 12... Bf5 {[%clk 0:04:38]} 13. Nxd6 {[%clk 0:04:31.5]} 13... Qxd6
{[%clk 0:04:36.8]} 14. Nc3 {[%clk 0:04:26.2]} 14... Nd7 {[%clk 0:04:31.8]} 15.
d5 {[%clk 0:04:14.5]} 15... cxd5 {[%clk 0:04:22.2]} 16. Bxd5 {[%clk 0:04:08]}
16... Ne5 {[%clk 0:03:52.5]} 17. Bxf7+ {[%clk 0:04:02.8]} 17... Nxf7 {[%clk
0:03:50.8]} 18. Qxd6 {[%clk 0:03:56.8]} 18... Nxd6 {[%clk 0:03:50.7]} 19. Rad1
{[%clk 0:03:50.8]} 19... Ne4 {[%clk 0:03:48.4]} 20. Nxe4 {[%clk 0:03:48.9]}
20... Bxe4 {[%clk 0:03:48.3]} 21. Rfe1 {[%clk 0:03:45.9]} 21... Bc6 {[%clk
0:03:46.9]} 22. Rf1 {[%clk 0:03:24]} 22... Rad8 {[%clk 0:03:44.8]} 23. Rc1
{[%clk 0:03:21.1]} 23... Rd2 {[%clk 0:03:42.6]} 0-1

[Event "Live Chess"]
[Site "Chess.com"]
[Date "2024.06.02"]
[Round "-"]
[White "degringolade64"]
[Black "Andriy_Yaremovych"]
[Result "1-0"]
[WhiteElo "2128"]
[BlackElo "1629"]
[TimeControl "300"]
[EndTime "4:53:34 PDT"]
[Termination "degringolade64 won by checkmate"]

1. e4 {[%clk 0:04:57.1]} 1... e6 {[%clk 0:04:59.9]} 2. d4 {[%clk 0:04:55.2]}
2... b6 {[%clk 0:04:59.8]} 3. Bd3 {[%clk 0:04:51.1]} 3... Bb7 {[%clk 0:04:59.7]}
4. Nf3 {[%clk 0:04:49.5]} 4... Nf6 {[%clk 0:04:59]} 5. Qe2 {[%clk 0:04:47.9]}
5... d5 {[%clk 0:04:56.3]} 6. e5 {[%clk 0:04:44.6]} 6... Nfd7 {[%clk 0:04:55.2]}
7. O-O {[%clk 0:04:35.4]} 7... h6 {[%clk 0:04:53.6]} 8. Re1 {[%clk 0:04:25]}
8... Qe7 {[%clk 0:04:50.9]} 9. b3 {[%clk 0:04:22.3]} 9... Nc6 {[%clk 0:04:45.9]}
10. Ba3 {[%clk 0:04:17.2]} 10... Qd8 {[%clk 0:04:41.7]} 11. c3 {[%clk 0:04:03]}
11... Bxa3 {[%clk 0:04:36]} 12. Nxa3 {[%clk 0:04:00.9]} 12... Qe7 {[%clk
0:04:35.9]} 13. Nc2 {[%clk 0:03:57.3]} 13... O-O-O {[%clk 0:04:33.4]} 14. Ba6
{[%clk 0:03:53]} 14... g5 {[%clk 0:04:32]} 15. Bxb7+ {[%clk 0:03:48]} 15... Kxb7
{[%clk 0:04:31.9]} 16. a4 {[%clk 0:03:47.1]} 16... a5 {[%clk 0:04:15.8]} 17. b4
{[%clk 0:03:30.2]} 17... Ndb8 {[%clk 0:04:10.5]} 18. Reb1 {[%clk 0:03:21.3]}
18... f5 {[%clk 0:03:53.2]} 19. Qb5 {[%clk 0:03:08]} 19... axb4 {[%clk
0:03:47.7]} 20. a5 {[%clk 0:03:00.1]} 20... bxc3 {[%clk 0:03:38.7]} 21. axb6
{[%clk 0:02:57.7]} 21... cxb6 {[%clk 0:03:37.8]} 22. Qxb6+ {[%clk 0:02:56.2]}
22... Kc8 {[%clk 0:03:36.9]} 23. Ra8 {[%clk 0:02:20.6]} 23... Qb7 {[%clk
0:03:30.4]} 24. Qxb7# {[%clk 0:02:18.4]} 1-0

[Event "Live Chess"]
[Site "Chess.com"]
[Date "2024.06.02"]
[Round "-"]
[White "JanMur7"]
[Black "E2E4colchester"]
[Result "1-0"]
[WhiteElo "2298"]
[BlackElo "1364"]
[TimeControl "300"]
[EndTime "4:53:44 PDT"]
[Termination "JanMur7 won by resignation"]

1. c4 {[%clk 0:04:56.7]} 1... e5 {[%clk 0:04:57.5]} 2. Nc3 {[%clk 0:04:55.8]}
2... Nf6 {[%clk 0:04:55.1]} 3. Nf3 {[%clk 0:04:55.2]} 3... c6 {[%clk 0:04:53.7]}
4. Nxe5 {[%clk 0:04:54.1]} 4... d5 {[%clk 0:04:43.8]} 5. cxd5 {[%clk 0:04:49.6]}
5... Nxd5 {[%clk 0:04:42.1]} 6. d4 {[%clk 0:04:45.6]} 6... Bd6 {[%clk
0:04:38.1]} 7. Nf3 {[%clk 0:04:43]} 7... Be6 {[%clk 0:04:33.3]} 8. Nxd5 {[%clk
0:04:41.1]} 8... cxd5 {[%clk 0:04:31.4]} 9. e3 {[%clk 0:04:38.6]} 9... Nc6
{[%clk 0:04:29.9]} 10. Be2 {[%clk 0:04:36.5]} 10... Bb4+ {[%clk 0:04:23.4]} 11.
Bd2 {[%clk 0:04:33.3]} 11... Qb6 {[%clk 0:04:19.7]} 12. O-O {[%clk 0:04:30.5]}
12... Bf5 {[%clk 0:04:12.2]} 13. Rc1 {[%clk 0:04:21.3]} 13... O-O-O {[%clk
0:04:03.5]} 14. Bxb4 {[%clk 0:04:10.7]} 14... Qxb4 {[%clk 0:03:59.6]} 15. Ne5
{[%clk 0:04:08.9]} 15... Be6 {[%clk 0:03:28.2]} 16. Nxc6 {[%clk 0:04:05.3]}
16... bxc6 {[%clk 0:03:26.8]} 17. Rxc6+ {[%clk 0:04:04.4]} 17... Kb8 {[%clk
0:03:25.5]} 18. Qb3 {[%clk 0:04:00.9]} 18... Qxb3 {[%clk 0:03:20.5]} 19. axb3
{[%clk 0:04:00.8]} 19... Rc8 {[%clk 0:03:17.8]} 20. Rfc1 {[%clk 0:03:57.9]}
20... Kb7 {[%clk 0:03:14.7]} 21. Ba6+ {[%clk 0:03:54.1]} 21... Kb8 {[%clk
0:03:08.5]} 22. Bxc8 {[%clk 0:03:51.9]} 22... Rxc8 {[%clk 0:03:07.7]} 23. Rxc8+
{[%clk 0:03:50.2]} 23... Bxc8 {[%clk 0:03:06.7]} 24. Rxc8+ {[%clk 0:03:47.8]}
24... Kxc8 {[%clk 0:03:05.4]} 25. Kf1 {[%clk 0:03:47.7]} 25... Kc7 {[%clk
0:03:04.5]} 26. Ke2 {[%clk 0:03:47.3]} 26... Kb6 {[%clk 0:03:03.7]} 27. Kd3
{[%clk 0:03:46.8]} 27... Kb5 {[%clk 0:03:01.8]} 28. e4 {[%clk 0:03:43.3]} 28...
dxe4+ {[%clk 0:02:58.5]} 29. Kxe4 {[%clk 0:03:43.2]} 29... a5 {[%clk 0:02:54.4]}
30. d5 {[%clk 0:03:41.7]} 30... Kc5 {[%clk 0:02:50.8]} 31. Ke5 {[%clk
0:03:39.8]} 31... h6 {[%clk 0:02:39.1]} 32. h3 {[%clk 0:03:37.7]} 32... h5
{[%clk 0:02:32.8]} 33. h4 {[%clk 0:03:36]} 33... g6 {[%clk 0:02:26.6]} 34. g3
{[%clk 0:03:35.1]} 34... g5 {[%clk 0:02:11.2]} 35. hxg5 {[%clk 0:03:32.1]} 35...
Kb4 {[%clk 0:02:00.8]} 36. d6 {[%clk 0:03:29.3]} 36... Kxb3 {[%clk 0:01:59.8]}
37. d7 {[%clk 0:03:27.6]} 1-0

[Event "Live Chess"]
[Site "Chess.com"]
[Date "2024.06.02"]
[Round "-"]
[White "road2gm5000"]
[Black "PureDashingOctopus"]
[Result "0-1"]
[WhiteElo "1103"]
[BlackElo "2279"]
[TimeControl "300"]
[EndTime "4:54:01 PDT"]
[Termination "PureDashingOctopus won by resignation"]

1. e4 {[%clk 0:04:52.6]} 1... c5 {[%clk 0:04:58.9]} 2. Nf3 {[%clk 0:04:50.2]}
2... d6 {[%clk 0:04:58.3]} 3. Bb5+ {[%clk 0:04:40.4]} 3... Nd7 {[%clk
0:04:57.3]} 4. d4 {[%clk 0:04:38.6]} 4... cxd4 {[%clk 0:04:55]} 5. Nxd4 {[%clk
0:04:38.5]} 5... a6 {[%clk 0:04:54.4]} 6. Ba4 {[%clk 0:04:31.8]} 6... Nf6 {[%clk
0:04:53.9]} 7. Nc3 {[%clk 0:04:30.2]} 7... b5 {[%clk 0:04:52.1]} 8. Bb3 {[%clk
0:04:28.7]} 8... Nc5 {[%clk 0:04:51.3]} 9. f3 {[%clk 0:04:26.4]} 9... Bb7 {[%clk
0:04:50.3]} 10. Be3 {[%clk 0:04:24.4]} 10... e6 {[%clk 0:04:47.4]} 11. Qe2
{[%clk 0:04:21.3]} 11... Be7 {[%clk 0:04:46.4]} 12. O-O {[%clk 0:04:19.9]} 12...
O-O {[%clk 0:04:45.2]} 13. Qd2 {[%clk 0:04:17.5]} 13... d5 {[%clk 0:04:40.9]}
14. exd5 {[%clk 0:04:15.7]} 14... Nxd5 {[%clk 0:04:39.1]} 15. Nxd5 {[%clk
0:04:14.9]} 15... Bxd5 {[%clk 0:04:38.5]} 16. Bxd5 {[%clk 0:04:14]} 16... Qxd5
{[%clk 0:04:38]} 17. Nb3 {[%clk 0:04:11.3]} 17... Qxd2 {[%clk 0:04:34.4]} 18.
Bxd2 {[%clk 0:04:10]} 18... Rfd8 {[%clk 0:04:32.1]} 19. Rad1 {[%clk 0:04:06.1]}
19... Nxb3 {[%clk 0:04:28.8]} 20. axb3 {[%clk 0:04:04.7]} 20... Bc5+ {[%clk
0:04:27.5]} 21. Kh1 {[%clk 0:04:00.9]} 21... Rd5 {[%clk 0:04:26.6]} 22. Bc3
{[%clk 0:03:59.2]} 22... Rad8 {[%clk 0:04:24.7]} 23. Rxd5 {[%clk 0:03:58.6]}
23... Rxd5 {[%clk 0:04:24.3]} 24. g3 {[%clk 0:03:55.4]} 24... f6 {[%clk
0:04:23.1]} 25. Kg2 {[%clk 0:03:54.7]} 25... b4 {[%clk 0:04:22.5]} 26. Be1
{[%clk 0:03:50.1]} 26... Rd1 {[%clk 0:04:21.6]} 27. g4 {[%clk 0:03:39.5]} 27...
Rc1 {[%clk 0:04:16.9]} 28. Bd2 {[%clk 0:03:36.5]} 28... Rxc2 {[%clk 0:04:14.1]}
0-1

[Event "Live Chess"]
[Site "Chess.com"]
[Date "2024.06.02"]
[Round "-"]
[White "raclement"]
[Black "dhairyapandyauk"]
[Result "0-1"]
[WhiteElo "1724"]
[BlackElo "1653"]
[TimeControl "300"]
[EndTime "4:54:23 PDT"]
[Termination "dhairyapandyauk won by resignation"]

1. Nf3 {[%clk 0:04:55.3]} 1... Nf6 {[%clk 0:04:57.5]} 2. g3 {[%clk 0:04:52.1]}
2... d5 {[%clk 0:04:56.3]} 3. Bg2 {[%clk 0:04:47.8]} 3... g6 {[%clk 0:04:55.8]}
4. O-O {[%clk 0:04:41.6]} 4... Bg7 {[%clk 0:04:55.3]} 5. c4 {[%clk 0:04:36.2]}
5... O-O {[%clk 0:04:54.6]} 6. cxd5 {[%clk 0:04:34.8]} 6... Nxd5 {[%clk
0:04:53.5]} 7. Nc3 {[%clk 0:04:33.5]} 7... Nxc3 {[%clk 0:04:51.5]} 8. dxc3
{[%clk 0:04:32.2]} 8... Qxd1 {[%clk 0:04:50.2]} 9. Rxd1 {[%clk 0:04:30]} 9... c6
{[%clk 0:04:49.2]} 10. Bf4 {[%clk 0:04:27.6]} 10... Bf5 {[%clk 0:04:47.7]} 11.
Rac1 {[%clk 0:04:11.6]} 11... Nd7 {[%clk 0:04:44.5]} 12. Nd2 {[%clk 0:04:04.2]}
12... e5 {[%clk 0:04:41.2]} 13. Bg5 {[%clk 0:03:57.9]} 13... h6 {[%clk
0:04:39.1]} 14. Be3 {[%clk 0:03:54.7]} 14... Be6 {[%clk 0:04:36.5]} 15. b3
{[%clk 0:03:46.4]} 15... f5 {[%clk 0:04:34.7]} 16. f4 {[%clk 0:03:37.6]} 16...
e4 {[%clk 0:04:31.6]} 17. Nf1 {[%clk 0:03:30]} 17... Nb6 {[%clk 0:04:21.9]} 18.
Bd4 {[%clk 0:03:26.9]} 18... Rad8 {[%clk 0:04:16.2]} 19. Bxg7 {[%clk 0:03:06.2]}
19... Kxg7 {[%clk 0:04:13.9]} 20. Ne3 {[%clk 0:03:02.2]} 20... Bd5 {[%clk
0:03:58]} 21. Kf2 {[%clk 0:03:00.2]} 21... Kf6 {[%clk 0:03:51.9]} 22. Nxd5+
{[%clk 0:02:58.4]} 22... Nxd5 {[%clk 0:03:50.5]} 23. c4 {[%clk 0:02:53.1]} 23...
Nc7 {[%clk 0:03:41.2]} 24. Ke3 {[%clk 0:02:48.8]} 24... Ne6 {[%clk 0:03:39.6]}
25. h3 {[%clk 0:02:36]} 25... g5 {[%clk 0:03:35.9]} 26. Rd2 {[%clk 0:02:23.3]}
26... Rxd2 {[%clk 0:03:32]} 27. Kxd2 {[%clk 0:02:21.4]} 27... Rd8+ {[%clk
0:03:30.3]} 28. Ke3 {[%clk 0:02:17.1]} 28... gxf4+ {[%clk 0:03:22.9]} 29. gxf4
{[%clk 0:02:14.2]} 29... Rg8 {[%clk 0:03:21.9]} 30. Kf2 {[%clk 0:02:06.3]} 30...
Nxf4 {[%clk 0:03:20]} 31. Rg1 {[%clk 0:02:03.3]} 31... e3+ {[%clk 0:03:12]} 32.
Kf1 {[%clk 0:01:56.1]} 32... Nxg2 {[%clk 0:03:07.6]} 33. Rxg2 {[%clk 0:01:54.1]}
33... Rxg2 {[%clk 0:03:06.6]} 34. Kxg2 {[%clk 0:01:53]} 34... Ke5 {[%clk
0:03:01.6]} 35. Kf3 {[%clk 0:01:51.7]} 35... f4 {[%clk 0:03:00.2]} 36. h4 {[%clk
0:01:46.9]} 36... h5 {[%clk 0:02:58.1]} 37. a3 {[%clk 0:01:42.8]} 37... b6
{[%clk 0:02:48.3]} 38. b4 {[%clk 0:01:21.2]} 38... b5 {[%clk 0:02:41.1]} 39. c5
{[%clk 0:01:15.3]} 39... a6 {[%clk 0:02:37.8]} 40. Kg2 {[%clk 0:01:13.1]} 40...
Ke4 {[%clk 0:02:35.9]} 41. Kh3 {[%clk 0:01:11.7]} 41... f3 {[%clk 0:02:34.4]}
42. Kg3 {[%clk 0:01:07.2]} 42... fxe2 {[%clk 0:02:32.8]} 0-1

[Event "Live Chess"]
[Site "Chess.com"]
[Date "2024.06.02"]
[Round "-"]
[White "Crowded_House"]
[Black "StoreySniper"]
[Result "0-1"]
[WhiteElo "1648"]
[BlackElo "2497"]
[TimeControl "300"]
[EndTime "4:54:30 PDT"]
[Termination "StoreySniper won by resignation"]

1. d4 {[%clk 0:04:57.8]} 1... g6 {[%clk 0:04:59.5]} 2. Bg5 {[%clk 0:04:57]} 2...
Bg7 {[%clk 0:04:58.9]} 3. c3 {[%clk 0:04:56.6]} 3... d6 {[%clk 0:04:57.9]} 4. e4
{[%clk 0:04:55.1]} 4... Nf6 {[%clk 0:04:57.1]} 5. Bxf6 {[%clk 0:04:53.2]} 5...
exf6 {[%clk 0:04:55.8]} 6. Nf3 {[%clk 0:04:52]} 6... O-O {[%clk 0:04:55]} 7. Bd3
{[%clk 0:04:50.1]} 7... Re8 {[%clk 0:04:53.7]} 8. Nbd2 {[%clk 0:04:49]} 8... f5
{[%clk 0:04:52.4]} 9. O-O {[%clk 0:04:44.8]} 9... fxe4 {[%clk 0:04:51.6]} 10.
Nxe4 {[%clk 0:04:42.2]} 10... Nd7 {[%clk 0:04:51.2]} 11. Re1 {[%clk 0:04:33.1]}
11... Nf6 {[%clk 0:04:49.6]} 12. Nxf6+ {[%clk 0:04:30.8]} 12... Bxf6 {[%clk
0:04:49]} 13. Rxe8+ {[%clk 0:04:29.6]} 13... Qxe8 {[%clk 0:04:48.4]} 14. Qe1
{[%clk 0:04:28.9]} 14... Bg4 {[%clk 0:04:46.3]} 15. Qxe8+ {[%clk 0:04:17]} 15...
Rxe8 {[%clk 0:04:45.2]} 16. Re1 {[%clk 0:04:07.7]} 16... Rxe1+ {[%clk
0:04:41.6]} 17. Nxe1 {[%clk 0:04:05.9]} 17... c5 {[%clk 0:04:39.6]} 18. dxc5
{[%clk 0:04:03.6]} 18... dxc5 {[%clk 0:04:38.6]} 19. f3 {[%clk 0:03:57.3]} 19...
Be6 {[%clk 0:04:36.7]} 20. a3 {[%clk 0:03:55.3]} 20... Kf8 {[%clk 0:04:33.9]}
21. Nc2 {[%clk 0:03:51.2]} 21... Bg5 {[%clk 0:04:30.3]} 22. g3 {[%clk
0:03:43.4]} 22... Bb3 {[%clk 0:04:23.8]} 23. Na1 {[%clk 0:03:33.5]} 23... Be3+
{[%clk 0:04:16.5]} 24. Kf1 {[%clk 0:03:30.4]} 24... c4 {[%clk 0:04:09.1]} 25.
Bc2 {[%clk 0:03:03.2]} 25... Ba2 {[%clk 0:04:01.6]} 26. Ke2 {[%clk 0:02:46.4]}
26... Bc1 {[%clk 0:04:00]} 27. b3 {[%clk 0:02:45.1]} 27... Bb2 {[%clk
0:03:53.4]} 28. bxc4 {[%clk 0:02:36.2]} 28... Bxa1 {[%clk 0:03:51.3]} 29. Kd3
{[%clk 0:02:33.4]} 29... Bb2 {[%clk 0:03:46.9]} 30. a4 {[%clk 0:02:31.8]} 30...
Ke7 {[%clk 0:03:39.4]} 31. Bd1 {[%clk 0:02:30.7]} 31... Kd6 {[%clk 0:03:35.2]}
32. f4 {[%clk 0:02:29.5]} 32... Kc5 {[%clk 0:03:32.2]} 33. Bf3 {[%clk
0:02:26.7]} 33... Bxc4+ {[%clk 0:03:25]} 34. Kc2 {[%clk 0:02:25.6]} 34... Ba3
{[%clk 0:03:23.4]} 35. Bxb7 {[%clk 0:02:22.8]} 35... Kb6 {[%clk 0:03:19.2]} 36.
Bc8 {[%clk 0:02:18.7]} 36... Bc5 {[%clk 0:03:17.6]} 37. f5 {[%clk 0:02:16]}
37... g5 {[%clk 0:03:12.2]} 38. h4 {[%clk 0:02:13]} 38... gxh4 {[%clk 0:03:08]}
39. gxh4 {[%clk 0:02:12]} 39... h5 {[%clk 0:03:04.3]} 40. Bd7 {[%clk 0:02:08.5]}
40... Be7 {[%clk 0:03:00.9]} 41. Be8 {[%clk 0:02:00.7]} 41... Bxh4 {[%clk
0:02:59.4]} 0-1

[Event "Live Chess"]
[Site "Chess.com"]
[Date "2024.06.02"]
[Round "-"]
[White "Dhaydon19"]
[Black "DoctorMantisTobogganMD"]
[Result "0-1"]
[WhiteElo "2637"]
[BlackElo "2188"]
[TimeControl "300"]
[EndTime "4:55:01 PDT"]
[Termination "DoctorMantisTobogganMD won by resignation"]

1. d4 {[%clk 0:04:57.9]} 1... Nf6 {[%clk 0:04:58.8]} 2. Nf3 {[%clk 0:04:57.5]}
2... c6 {[%clk 0:04:57.9]} 3. g3 {[%clk 0:04:57]} 3... d5 {[%clk 0:04:57.3]} 4.
Bg2 {[%clk 0:04:56.6]} 4... Bg4 {[%clk 0:04:56.6]} 5. O-O {[%clk 0:04:56.3]}
5... Bxf3 {[%clk 0:04:56.1]} 6. exf3 {[%clk 0:04:55.2]} 6... e6 {[%clk 0:04:56]}
7. f4 {[%clk 0:04:54.5]} 7... g6 {[%clk 0:04:55]} 8. Nd2 {[%clk 0:04:54.1]} 8...
Bg7 {[%clk 0:04:53.9]} 9. Nf3 {[%clk 0:04:53.7]} 9... O-O {[%clk 0:04:53.1]} 10.
c3 {[%clk 0:04:53.4]} 10... Nbd7 {[%clk 0:04:52.1]} 11. Re1 {[%clk 0:04:52.6]}
11... Rc8 {[%clk 0:04:50.5]} 12. Be3 {[%clk 0:04:51.7]} 12... c5 {[%clk
0:04:49.4]} 13. Qe2 {[%clk 0:04:49.1]} 13... cxd4 {[%clk 0:04:46.2]} 14. Bxd4
{[%clk 0:04:48.7]} 14... Ne4 {[%clk 0:04:44.5]} 15. Rad1 {[%clk 0:04:47.4]}
15... Bxd4 {[%clk 0:04:41.5]} 16. Nxd4 {[%clk 0:04:46.2]} 16... Nef6 {[%clk
0:04:40.8]} 17. Nf3 {[%clk 0:04:41.6]} 17... a6 {[%clk 0:04:39.4]} 18. Ng5
{[%clk 0:04:37.7]} 18... h6 {[%clk 0:04:37.6]} 19. Nf3 {[%clk 0:04:35.9]} 19...
b5 {[%clk 0:04:35.3]} 20. a3 {[%clk 0:04:31.6]} 20... Qb6 {[%clk 0:04:30.9]} 21.
Nd4 {[%clk 0:04:27.9]} 21... Rfe8 {[%clk 0:04:20.9]} 22. h3 {[%clk 0:04:25.8]}
22... Rb8 {[%clk 0:04:16.9]} 23. Qd2 {[%clk 0:04:21.2]} 23... a5 {[%clk
0:04:11.1]} 24. Re3 {[%clk 0:04:14.1]} 24... b4 {[%clk 0:04:09.5]} 25. axb4
{[%clk 0:04:12.6]} 25... axb4 {[%clk 0:04:09.4]} 26. g4 {[%clk 0:04:02.4]} 26...
bxc3 {[%clk 0:04:08.3]} 27. bxc3 {[%clk 0:04:00.5]} 27... Nc5 {[%clk 0:04:02]}
28. f5 {[%clk 0:03:52.4]} 28... Nfe4 {[%clk 0:04:00.3]} 29. Bxe4 {[%clk
0:03:50.1]} 29... Nxe4 {[%clk 0:03:59.6]} 30. Qd3 {[%clk 0:03:45.2]} 30... Qb2
{[%clk 0:03:33.8]} 31. Rf1 {[%clk 0:03:38.7]} 31... Rbc8 {[%clk 0:03:15.8]} 32.
fxe6 {[%clk 0:03:27.9]} 32... fxe6 {[%clk 0:03:14.8]} 33. Qb5 {[%clk 0:03:20.9]}
33... Qxb5 {[%clk 0:03:06.5]} 34. Nxb5 {[%clk 0:03:19.8]} 34... Rc5 {[%clk
0:03:02.2]} 35. Nd4 {[%clk 0:03:16.9]} 35... Rxc3 {[%clk 0:02:57.8]} 36. Rfe1
{[%clk 0:03:09.3]} 36... Rxe3 {[%clk 0:02:49.7]} 37. Rxe3 {[%clk 0:03:07.9]}
37... Kf7 {[%clk 0:02:45.2]} 38. f3 {[%clk 0:03:05.2]} 38... Nd6 {[%clk
0:02:39.4]} 39. Nc6 {[%clk 0:02:59.8]} 39... Kf6 {[%clk 0:02:33.7]} 40. Ne5
{[%clk 0:02:55.6]} 40... Nc4 {[%clk 0:02:29.4]} 41. Nxc4 {[%clk 0:02:53.1]}
41... dxc4 {[%clk 0:02:28.4]} 42. Rc3 {[%clk 0:02:49.3]} 42... Rc8 {[%clk
0:02:27.6]} 43. Kf2 {[%clk 0:02:46.5]} 43... Ke5 {[%clk 0:02:24]} 44. Ke3 {[%clk
0:02:45.9]} 44... Kd5 {[%clk 0:02:23.6]} 45. f4 {[%clk 0:02:44.6]} 45... Rb8
{[%clk 0:01:49.7]} 46. Kd2 {[%clk 0:02:35.9]} 46... Kd4 {[%clk 0:01:46.6]} 47.
Rf3 {[%clk 0:02:25.7]} 47... Rb3 {[%clk 0:01:43.8]} 48. Rf1 {[%clk 0:02:06.6]}
48... Rxh3 {[%clk 0:01:38.1]} 49. Re1 {[%clk 0:02:05.4]} 49... Rh2+ {[%clk
0:01:36]} 50. Kc1 {[%clk 0:02:03.9]} 50... Rg2 {[%clk 0:01:29.8]} 51. Rxe6
{[%clk 0:01:58.1]} 51... Rxg4 {[%clk 0:01:28.6]} 52. f5 {[%clk 0:01:53.5]} 52...
gxf5 {[%clk 0:01:26.5]} 53. Rxh6 {[%clk 0:01:52.4]} 53... f4 {[%clk 0:01:24.9]}
54. Rf6 {[%clk 0:01:45.4]} 54... Ke3 {[%clk 0:01:23.8]} 55. Re6+ {[%clk
0:01:40.9]} 55... Kf2 {[%clk 0:01:22.5]} 56. Kd2 {[%clk 0:01:39.4]} 56... f3
{[%clk 0:01:21.4]} 57. Rd6 {[%clk 0:01:37.2]} 57... Re4 {[%clk 0:01:19.7]} 58.
Rg6 {[%clk 0:01:33.7]} 58... Kf1 {[%clk 0:01:18.4]} 59. Rf6 {[%clk 0:01:30]}
59... f2 {[%clk 0:01:17.3]} 60. Rh6 {[%clk 0:01:28.8]} 60... Re5 {[%clk
0:01:15.6]} 61. Rf6 {[%clk 0:01:27.1]} 61... c3+ {[%clk 0:01:14.5]} 62. Kxc3
{[%clk 0:01:25.8]} 62... Ke2 {[%clk 0:01:13.8]} 63. Kd4 {[%clk 0:01:25.4]} 63...
Re8 {[%clk 0:01:10.9]} 64. Rf8 {[%clk 0:01:21.8]} 64... Rxf8 {[%clk 0:01:09.2]}
0-1

[Event "Live Chess"]
[Site "Chess.com"]
[Date "2024.06.02"]
[Round "-"]
[White "E2E4colchester"]
[Black "road2gm5000"]
[Result "0-1"]
[WhiteElo "1194"]
[BlackElo "1115"]
[TimeControl "300"]
[EndTime "4:55:11 PDT"]
[Termination "road2gm5000 won by resignation"]

1. d4 {[%clk 0:04:54.9]} 1... d5 {[%clk 0:04:58.1]} 2. c4 {[%clk 0:04:53.1]}
2... e6 {[%clk 0:04:57.5]} 3. e3 {[%clk 0:04:52]} 3... Nf6 {[%clk 0:04:55.6]} 4.
Nc3 {[%clk 0:04:51]} 4... Bb4 {[%clk 0:04:52.8]} 5. Bd2 {[%clk 0:04:49.7]} 5...
Nc6 {[%clk 0:04:52.2]} 6. a3 {[%clk 0:04:48.3]} 6... Bxc3 {[%clk 0:04:49.1]} 7.
Bxc3 {[%clk 0:04:47.4]} 7... a6 {[%clk 0:04:48.4]} 8. b4 {[%clk 0:04:46.4]} 8...
dxc4 {[%clk 0:04:47.2]} 9. Bxc4 {[%clk 0:04:45]} 9... b5 {[%clk 0:04:45.6]} 10.
Bb3 {[%clk 0:04:44]} 10... Bb7 {[%clk 0:04:44.6]} 11. Nf3 {[%clk 0:04:41.7]}
11... O-O {[%clk 0:04:43.3]} 12. Qd3 {[%clk 0:04:35.6]} 12... e5 {[%clk
0:04:35.1]} 13. dxe5 {[%clk 0:04:32.3]} 13... Qxd3 {[%clk 0:04:33]} 0-1